[Event "Irish International Open 2019"]
[Site "Dublin"]
[Date "2019.04.19"]
[Round "4.15"]
[White "Duffy, Seamus"]
[Black "Mihalik, Agoston"]
[Result "0-1"]
[ECO "A01"]
[WhiteElo "1921"]
[BlackElo "2203"]
[Annotator "NA"]
[PlyCount "104"]
[EventDate "2019.02.28"]
[EventType "swiss"]
[EventCountry "IRL"]
[SourceTitle "playchess.com"]
[Source "ChessBase"]
[SourceQuality "1"]
[TimeControl "5400+30"]

1. b3 {[%emt 0:00:00]} d5 {[%emt 0:00:00]} 2. Bb2 {[%emt 0:00:00]} c5 {[%emt 0:00:00]} 3. e3 {[%emt 0:00:00]} a6 {[%emt 0:00:00]} 4. f4 {[%emt 0:00:12]} Nf6 {[%emt 0:00:16]} 5. Nf3 {[%emt 0:00:06]} g6 {[%emt 0:01:34]} 6. Be2 {[%emt 0:00:40]} Bg7 {[%emt 0:00:07]} 7. O-O {[%emt 0:00:12]} Nc6 {[%emt 0:02:37]} 8. Ne5 {[%emt 0:02:06]} Bd7 {[%emt 0:00:41]} 9. d3 {[%emt 0:02:16]} O-O {[%emt 0:00:49]} 10. Nd2 {[%emt 0:02:12]} d4 {[%emt 0:07:23]} 11. Nxc6 {[%emt 0:03:33]} Bxc6 {[%emt 0:00:23]} 12. e4 {[%emt 0:00:07]} b5 {[%emt 0:09:55]} 13. Bf3 {[%emt 0:01:28]} Qc7 {[%emt 0:05:10]} 14. g3 {[%emt 0:03:07]} Rfd8 {[%emt 0:01:25]} 15. Qe2 {[%emt 0:01:54]} Nd7 {[%emt 0:03:29]} 16. Bg2 {[%emt 0:02:36]} Nb6 {[%emt 0:05:13]} 17. Rae1 {[%emt 0:05:29]} c4 {[%emt 0:05:15]} 18. Nf3 {[%emt 0:00:16]} e6 {[%emt 0:08:45]} 19. Bc1 {[%emt 0:02:08]} a5 {[%emt 0:00:43]} 20. f5 {[%emt 0:06:35]} e5 {[%emt 0:09:08]} 21. fxg6 {[%emt 0:00:53]} hxg6 {[%emt 0:00:34]} 22. Ng5 {[%emt 0:01:11]} Be8 {[%emt 0:00:34]} 23. Qg4 {[%emt 0:01:18]} Nd7 {[%emt 0:11:15]} 24. Qh4 {[%emt 0:02:00]} Nf8 {[%emt 0:00:19]} 25. Bh3 {[%emt 0:04:23]} Ra6 {[%emt 0:00:49]} 26. bxc4 {[%emt 0:04:52]} f6 {[%emt 0:01:07]} 27. cxb5 {[%emt 0:01:55]} Bxb5 {[%emt 0:00:20]} 28. Nf3 {[%emt 0:03:49]} Re8 {[%emt 0:08:58]} 29. Rf2 {[%emt 0:03:09]} Rc6 {[%emt 0:00:11]} 30. Bh6 {[%emt 0:04:15]} Rxc2 {[%emt 0:00:22]} 31. Bxg7 {[%emt 0:02:27]} Kxg7 {[%emt 0:01:00]} 32. Nd2 {[%emt 0:07:31]} Nh7 {[%emt 0:00:37]} 33. Bf1 {[%emt 0:06:18]} Rxa2 {[%emt 0:00:36]} 34. Rb1 {[%emt 0:05:13]} Bd7 {[%emt 0:00:54]} 35. g4 {[%emt 0:05:38]} Rb8 {[%emt 0:01:05]} 36. Rxb8 {[%emt 0:01:45]} Qxb8 {[%emt 0:00:04]} 37. Qg3 {[%emt 0:02:02]} Qc8 {[%emt 0:01:57]} 38. h3 {[%emt 0:05:43]} Qc3 {[%emt 0:02:20]} 39. Nb1 {[%emt 0:01:52]} Qa1 {[%emt 0:00:10]} 40. Nd2 {[%emt 0:00:59]} Qe1 {[%emt 0:02:58]} 41. Qg2 {[%emt 0:02:13]} Ng5 {[%emt 0:00:41]} 42. Re2 {[%emt 0:01:47]} Qd1 {[%emt 0:02:22]} 43. h4 {[%emt 0:04:20]} Nh3+ {[%emt 0:03:09]} 44. Qxh3 {[%emt 0:00:31]} Rxd2 {[%emt 0:00:04]} 45. Rxd2 {[%emt 0:00:28]} Qxd2 {[%emt 0:00:05]} 46. h5 {[%emt 0:00:55]} gxh5 {[%emt 0:00:49]} 47. Qxh5 {[%emt 0:00:14]} Qh6 {[%emt 0:00:16]} 48. Qxh6+ {[%emt 0:00:41]} Kxh6 {[%emt 0:00:04]} 49. Be2 {[%emt 0:00:05]} a4 {[%emt 0:00:11]} 50. Bd1 {[%emt 0:00:04]} a3 {[%emt 0:00:06]} 51. Bb3 {[%emt 0:00:06]} Kg6 {[%emt 0:00:13]} 52. Kf2 {[%emt 0:00:12]} Be8 {[%emt 0:00:38]} 0-1

[Event "Irish International Open 2019"]
[Site "Dublin"]
[Date "2019.04.19"]
[Round "4.16"]
[White "Han, Yichen"]
[Black "Hafstad, Leif"]
[Result "1-0"]
[ECO "B44"]
[WhiteElo "2190"]
[BlackElo "1857"]
[Annotator "NA"]
[PlyCount "81"]
[EventDate "2019.02.28"]
[EventType "swiss"]
[EventCountry "IRL"]
[SourceTitle "playchess.com"]
[Source "ChessBase"]
[SourceQuality "1"]
[TimeControl "5400+30"]

1. e4 {[%emt 0:00:00]} c5 {[%emt 0:00:00]} 2. Nf3 {[%emt 0:00:00]} e6 {[%emt 0:00:09]} 3. d4 {[%emt 0:00:00]} cxd4 {[%emt 0:00:25]} 4. Nxd4 {[%emt 0:00:00]} Nc6 {[%emt 0:00:49]} 5. Nb5 {[%emt 0:00:00]} a6 {[%emt 0:04:09]} 6. Nd6+ {[%emt 0:00:14]} Bxd6 {[%emt 0:00:18]} 7. Qxd6 {[%emt 0:00:06]} Qe7 {[%emt 0:01:18]} 8. Qg3 {[%emt 0:03:02]} Qf6 {[%emt 0:26:39]} 9. Nc3 {[%emt 0:01:24]} h6 {[%emt 0:01:35]} 10. Bf4 {[%emt 0:02:24]} Nge7 {[%emt 0:06:45]} 11. Bd3 {[%emt 0:03:43]} e5 {[%emt 0:03:11]} 12. Be3 {[%emt 0:00:37]} O-O {[%emt 0:03:32]} 13. O-O {[%emt 0:02:08]} d6 {[%emt 0:03:18]} 14. f4 {[%emt 0:03:54]} Qg6 {[%emt 0:03:50]} 15. f5 {[%emt 0:02:25]} Qxg3 {[%emt 0:01:03]} 16. hxg3 {[%emt 0:00:07]} f6 {[%emt 0:07:32]} 17. Bc4+ {[%emt 0:03:47]} Kh7 {[%emt 0:00:09]} 18. a4 {[%emt 0:01:34]} Nb4 {[%emt 0:06:36]} 19. Bb3 {[%emt 0:00:31]} Nec6 {[%emt 0:05:10]} 20. Rad1 {[%emt 0:00:56]} Na5 {[%emt 0:03:16]} 21. Rxd6 {[%emt 0:00:49]} Nxb3 {[%emt 0:01:36]} 22. cxb3 {[%emt 0:00:06]} Nc6 {[%emt 0:02:26]} 23. Nd5 {[%emt 0:00:44]} Rf7 {[%emt 0:02:40]} 24. Rd1 {[%emt 0:00:58]} Rb8 {[%emt 0:01:55]} 25. Nb6 {[%emt 0:00:37]} Rc7 {[%emt 0:01:34]} 26. Bc5 {[%emt 0:00:55]} Na5 {[%emt 0:02:48]} 27. b4 {[%emt 0:00:31]} Nb3 {[%emt 0:01:32]} 28. Rd8 {[%emt 0:00:26]} Nxc5 {[%emt 0:02:37]} 29. bxc5 {[%emt 0:00:02]} Rxc5 {[%emt 0:03:20]} 30. Re8 {[%emt 0:00:28]} Bxf5 {[%emt 0:00:56]} 31. Rxb8 {[%emt 0:00:10]} Bxe4 {[%emt 0:00:11]} 32. Rc8 {[%emt 0:00:28]} Bc6 {[%emt 0:00:30]} 33. Rd2 {[%emt 0:01:23]} e4 {[%emt 0:00:58]} 34. Kf2 {[%emt 0:00:41]} Kg6 {[%emt 0:02:09]} 35. Rcd8 {[%emt 0:02:05]} Rf5+ {[%emt 0:00:32]} 36. Kg1 {[%emt 0:00:43]} Rc5 {[%emt 0:00:27]} 37. Nd5 {[%emt 0:00:31]} Bxa4 {[%emt 0:01:01]} 38. Rd4 {[%emt 0:01:48]} Bc2 {[%emt 0:01:06]} 39. Nf4+ {[%emt 0:00:19]} Kh7 {[%emt 0:00:35]} 40. Re8 {[%emt 0:00:14]} g5 {[%emt 0:00:41]} 41. Rd7# {[%emt 0:00:08]} 1-0

[Event "Irish International Open 2019"]
[Site "Dublin"]
[Date "2019.04.19"]
[Round "4.16"]
[White "Han, Yichen"]
[Black "Hafstad, Leif"]
[Result "*"]
[ECO "B44"]
[WhiteElo "2190"]
[BlackElo "1857"]
[Annotator "NA"]
[PlyCount "56"]
[EventDate "2019.02.28"]
[EventType "swiss"]
[EventCountry "IRL"]
[SourceTitle "playchess.com"]
[Source "ChessBase"]
[SourceQuality "1"]
[TimeControl "5400+30"]

1. e4 {[%emt 1:30:30]} c5 {[%emt 0:00:00]} 2. Nf3 {[%emt 0:00:00]} e6 {[%emt 0:00:09]} 3. d4 {[%emt 0:00:00]} cxd4 {[%emt 0:00:25]} 4. Nxd4 {[%emt 0:00:00]} Nc6 {[%emt 0:00:49]} 5. Nb5 {[%emt 0:00:00]} a6 {[%emt 0:04:09]} 6. Nd6+ {[%emt 0:00:14]} Bxd6 {[%emt 0:00:18]} 7. Qxd6 {[%emt 0:00:06]} Qe7 {[%emt 0:01:18]} 8. Qg3 {[%emt 0:03:02]} Qf6 {[%emt 0:26:39]} 9. Nc3 {[%emt 0:01:24]} h6 {[%emt 0:01:35]} 10. Bf4 {[%emt 0:02:24]} Nge7 {[%emt 0:06:45]} 11. Bd3 {[%emt 0:03:43]} e5 {[%emt 0:03:11]} 12. Be3 {[%emt 0:00:37]} O-O {[%emt 0:03:32]} 13. O-O {[%emt 0:02:08]} d6 {[%emt 0:03:18]} 14. f4 {[%emt 0:03:54]} Qg6 {[%emt 0:03:50]} 15. f5 {[%emt 0:02:25]} Qxg3 {[%emt 0:01:03]} 16. hxg3 {[%emt 0:00:07]} f6 {[%emt 0:07:32]} 17. Bc4+ {[%emt 0:03:47]} Kh7 {[%emt 0:00:09]} 18. a4 {[%emt 0:01:34]} Nb4 {[%emt 0:06:36]} 19. Bb3 {[%emt 0:00:31]} Nec6 {[%emt 0:05:10]} 20. Rad1 {[%emt 0:00:56]} Na5 {[%emt 0:03:16]} 21. Rd2 {[%emt 1:13:38]} d5 22. Rxd5 {[%emt 0:00:00]} Nxb3 {[%emt 0:02:06]} 23. Rd6 {[%emt 0:00:00]} Nc6 24. cxb3 {[%emt 0:00:00]} Rf7 {[%emt 0:20:10]} 25. Nd5 {[%emt 0:00:00]} Rb8 {[%emt 0:01:55]} 26. Rd1 {[%emt 0:00:00]} Rc7 {[%emt 0:01:34]} 27. Nb6 {[%emt 0:00:00]} Na5 {[%emt 0:02:48]} 28. Bc5 {[%emt 0:00:00]} Nxb3 {[%emt 0:01:32]} *

[Event "Irish International Open 2019"]
[Site "Dublin"]
[Date "2019.04.19"]
[Round "4.17"]
[White "Scallan, Fiachra"]
[Black "Menzies, Colin"]
[Result "0-1"]
[ECO "B18"]
[WhiteElo "1899"]
[BlackElo "2183"]
[Annotator "NA"]
[PlyCount "62"]
[EventDate "2019.02.28"]
[EventType "swiss"]
[EventCountry "IRL"]
[SourceTitle "playchess.com"]
[Source "ChessBase"]
[SourceQuality "1"]
[TimeControl "5400+30"]

1. e4 {[%emt 0:00:00]} c6 {[%emt 0:00:00]} 2. d4 {[%emt 0:00:00]} d5 {[%emt 0:00:00]} 3. Nd2 {[%emt 0:00:05]} dxe4 {[%emt 0:00:00]} 4. Nxe4 {[%emt 0:00:07]} Bf5 {[%emt 0:00:00]} 5. Ng3 {[%emt 0:00:09]} Bg6 {[%emt 0:00:00]} 6. h4 {[%emt 0:00:07]} h6 {[%emt 0:00:00]} 7. Nh3 {[%emt 0:00:04]} e6 {[%emt 0:01:56]} 8. Nf4 {[%emt 0:00:02]} Bh7 {[%emt 0:00:28]} 9. Bc4 {[%emt 0:00:04]} Ne7 {[%emt 0:05:47]} 10. c3 {[%emt 0:08:16]} Nd5 {[%emt 0:01:02]} 11. Qh5 {[%emt 0:03:02]} Bd6 {[%emt 0:07:08]} 12. Bxd5 {[%emt 0:03:01]} cxd5 {[%emt 0:03:32]} 13. Qg4 {[%emt 0:02:24]} Kf8 {[%emt 0:07:27]} 14. Ngh5 {[%emt 0:04:54]} Rg8 {[%emt 0:02:22]} 15. O-O {[%emt 0:07:46]} Bf5 {[%emt 0:04:51]} 16. Qf3 {[%emt 0:03:38]} Qxh4 {[%emt 0:04:07]} 17. g3 {[%emt 0:01:24]} Qg4 {[%emt 0:10:25]} 18. Qg2 {[%emt 0:05:41]} Bxf4 {[%emt 0:00:53]} 19. Nxf4 {[%emt 0:00:04]} Bh7 {[%emt 0:01:05]} 20. Nxd5 {[%emt 0:02:25]} exd5 {[%emt 0:02:29]} 21. Qxd5 {[%emt 0:00:03]} g5 {[%emt 0:00:11]} 22. Re1 {[%emt 0:03:12]} Nc6 {[%emt 0:02:36]} 23. b3 {[%emt 0:03:59]} Kg7 {[%emt 0:02:51]} 24. Bb2 {[%emt 0:03:04]} Rge8 {[%emt 0:00:31]} 25. Qg2 {[%emt 0:01:11]} Be4 {[%emt 0:00:47]} 26. Qh2 {[%emt 0:00:07]} f6 {[%emt 0:03:38]} 27. Re3 {[%emt 0:00:49]} Bf3 {[%emt 0:02:55]} 28. Rae1 {[%emt 0:00:33]} Rxe3 {[%emt 0:00:36]} 29. Rxe3 {[%emt 0:00:05]} Qf5 {[%emt 0:01:31]} 30. Re1 {[%emt 0:01:10]} Re8 {[%emt 0:00:18]} 31. Rf1 {[%emt 0:00:50]} h5 {[%emt 0:01:41]} 0-1

[Event "Irish International Open 2019"]
[Site "Dublin"]
[Date "2019.04.19"]
[Round "4.18"]
[White "O`Connell, Kevin J."]
[Black "Schut, Han"]
[Result "0-1"]
[ECO "A48"]
[WhiteElo "2328"]
[BlackElo "2173"]
[Annotator "NA"]
[PlyCount "90"]
[EventDate "2019.02.28"]
[EventType "swiss"]
[EventCountry "IRL"]
[SourceTitle "playchess.com"]
[Source "ChessBase"]
[SourceQuality "1"]
[TimeControl "5400+30"]

1. d4 {[%emt 0:00:00]} Nf6 {[%emt 0:00:54]} 2. Bf4 {[%emt 0:00:00]} g6 {[%emt 0:00:15]} 3. e3 {[%emt 0:00:00]} Bg7 {[%emt 0:00:08]} 4. Nf3 {[%emt 0:01:53]} d6 {[%emt 0:00:21]} 5. h3 {[%emt 0:00:26]} O-O {[%emt 0:00:07]} 6. Be2 {[%emt 0:00:48]} c5 {[%emt 0:00:10]} 7. c3 {[%emt 0:00:04]} cxd4 {[%emt 0:00:04]} 8. exd4 {[%emt 0:00:47]} Nc6 {[%emt 0:00:21]} 9. O-O {[%emt 0:00:43]} h6 {[%emt 0:11:57]} 10. Re1 {[%emt 0:05:43]} Bf5 {[%emt 0:16:00]} 11. Nbd2 {[%emt 0:07:26]} a6 {[%emt 0:19:46]} 12. Bf1 {[%emt 0:13:31]} Re8 {[%emt 0:02:01]} 13. g4 {[%emt 0:10:48]} Bd7 {[%emt 0:07:34]} 14. Nc4 {[%emt 0:07:53]} b5 {[%emt 0:00:38]} 15. Ne3 {[%emt 0:02:52]} e5 {[%emt 0:06:01]} 16. dxe5 {[%emt 0:04:08]} dxe5 {[%emt 0:00:08]} 17. Bh2 {[%emt 0:00:12]} Qc8 {[%emt 0:04:24]} 18. Nd2 {[%emt 0:03:44]} Be6 {[%emt 0:05:45]} 19. Bg2 {[%emt 0:01:32]} Ra7 {[%emt 0:00:29]} 20. Qe2 {[%emt 0:01:55]} h5 {[%emt 0:01:33]} 21. g5 {[%emt 0:01:24]} Nd7 {[%emt 0:07:00]} 22. Ne4 {[%emt 0:01:31]} Bf8 {[%emt 0:05:10]} 23. Red1 {[%emt 0:01:38]} Rd8 {[%emt 0:05:04]} 24. h4 {[%emt 0:24:29]} Kh8 {[%emt 0:00:35]} 25. Nd5 {[%emt 0:03:51]} Ndb8 {[%emt 0:02:41]} 26. Ndf6 {[%emt 0:02:02]} Be7 {[%emt 0:01:13]} 27. Nxh5 {[%emt 0:01:17]} Bg4 {[%emt 0:00:29]} 28. Bf3 {[%emt 0:00:14]} gxh5 {[%emt 0:00:10]} 29. Rxd8+ {[%emt 0:02:11]} Bxd8 {[%emt 0:00:19]} 30. Bxg4 {[%emt 0:01:06]} Qxg4+ {[%emt 0:01:01]} 31. Qxg4 {[%emt 0:00:02]} hxg4 {[%emt 0:00:01]} 32. Rd1 {[%emt 0:00:32]} Rd7 {[%emt 0:00:48]} 33. Re1 {[%emt 0:00:38]} Kg7 {[%emt 0:01:41]} 34. Re2 {[%emt 0:00:45]} f5 {[%emt 0:00:58]} 35. Nc5 {[%emt 0:00:31]} Rd1+ {[%emt 0:00:32]} 36. Kg2 {[%emt 0:00:01]} f4 {[%emt 0:00:25]} 37. f3 {[%emt 0:01:00]} g3 {[%emt 0:01:08]} 38. Bg1 {[%emt 0:00:28]} Kg6 {[%emt 0:00:32]} 39. Ne4 {[%emt 0:00:46]} Nd7 {[%emt 0:00:32]} 40. Bc5 {[%emt 0:00:21]} Nxc5 {[%emt 0:00:28]} 41. Nxc5 {[%emt 0:00:02]} Kh5 {[%emt 0:00:32]} 42. Ne4 {[%emt 0:01:03]} Bb6 {[%emt 0:00:27]} 43. Rd2 {[%emt 0:00:42]} Rg1+ {[%emt 0:00:34]} 44. Kh3 {[%emt 0:00:23]} Rh1+ {[%emt 0:00:11]} 45. Kg2 {[%emt 0:00:04]} Rh2+ {[%emt 0:00:20]} 0-1

[Event "Irish International Open 2019"]
[Site "Dublin"]
[Date "2019.04.19"]
[Round "4.19"]
[White "Jocius, Donatas"]
[Black "Murray, David"]
[Result "1/2-1/2"]
[ECO "B40"]
[WhiteElo "1773"]
[BlackElo "2152"]
[Annotator "NA"]
[PlyCount "47"]
[EventDate "2019.02.28"]
[EventType "swiss"]
[EventCountry "IRL"]
[SourceTitle "playchess.com"]
[Source "ChessBase"]
[SourceQuality "1"]
[TimeControl "5400+30"]

1. e4 {[%emt 0:00:01]} e6 {[%emt 0:00:00]} 2. c3 {[%emt 0:00:05]} d5 {[%emt 0:00:09]} 3. e5 {[%emt 0:00:17]} c5 {[%emt 0:00:31]} 4. Nf3 {[%emt 0:02:23]} Nc6 {[%emt 0:00:24]} 5. Bb5 {[%emt 0:00:31]} Qb6 {[%emt 0:01:19]} 6. Ba4 {[%emt 0:00:35]} Nh6 {[%emt 0:00:52]} 7. d4 {[%emt 0:02:09]} Bd7 {[%emt 0:01:25]} 8. O-O {[%emt 0:04:25]} Nf5 {[%emt 0:00:51]} 9. Bxc6 {[%emt 0:01:13]} bxc6 {[%emt 0:01:27]} 10. b3 {[%emt 0:00:23]} cxd4 {[%emt 0:01:44]} 11. Nxd4 {[%emt 0:00:29]} Nxd4 {[%emt 0:00:43]} 12. cxd4 {[%emt 0:01:17]} c5 {[%emt 0:03:58]} 13. Be3 {[%emt 0:00:05]} Bb5 {[%emt 0:01:38]} 14. Re1 {[%emt 0:00:08]} c4 {[%emt 0:01:16]} 15. bxc4 {[%emt 0:00:46]} Bxc4 {[%emt 0:00:26]} 16. Na3 {[%emt 0:01:12]} Qa6 {[%emt 0:07:19]} 17. Nxc4 {[%emt 0:00:13]} Qxc4 {[%emt 0:00:07]} 18. Qg4 {[%emt 0:00:47]} h5 {[%emt 0:03:42]} 19. Qf3 {[%emt 0:00:47]} Ba3 {[%emt 0:02:47]} 20. Rab1 {[%emt 0:01:47]} Qa6 {[%emt 0:05:19]} 21. Rb3 {[%emt 0:00:53]} Rc8 {[%emt 0:06:17]} 22. Reb1 {[%emt 0:01:05]} Be7 {[%emt 0:01:12]} 23. a3 {[%emt 0:01:25]} f6 {[%emt 0:58:04]} 24. Bd2 {[%emt 0:00:30]} 1/2-1/2

[Event "Irish International Open 2019"]
[Site "Dublin"]
[Date "2019.04.19"]
[Round "4.20"]
[White "Melaugh, Shane"]
[Black "Opseth, Oliver"]
[Result "1-0"]
[ECO "E73"]
[WhiteElo "2105"]
[BlackElo "1739"]
[Annotator "NA"]
[PlyCount "75"]
[EventDate "2019.02.28"]
[EventType "swiss"]
[EventCountry "IRL"]
[SourceTitle "playchess.com"]
[Source "ChessBase"]
[SourceQuality "1"]
[TimeControl "5400+30"]

1. c4 {[%emt 0:00:00]} Nf6 {[%emt 0:00:00]} 2. Nc3 {[%emt 0:00:00]} d6 {[%emt 0:00:37]} 3. d4 {[%emt 0:00:15]} g6 {[%emt 0:00:17]} 4. e4 {[%emt 0:00:05]} Bg7 {[%emt 0:00:08]} 5. Be2 {[%emt 0:00:15]} O-O {[%emt 0:00:25]} 6. Be3 {[%emt 0:00:07]} e5 {[%emt 0:00:43]} 7. d5 {[%emt 0:00:05]} Ne8 {[%emt 0:05:02]} 8. g4 {[%emt 0:00:22]} f5 {[%emt 0:06:00]} 9. gxf5 {[%emt 0:01:05]} gxf5 {[%emt 0:00:11]} 10. exf5 {[%emt 0:02:00]} Bxf5 {[%emt 0:00:07]} 11. Nf3 {[%emt 0:00:25]} Na6 {[%emt 0:11:12]} 12. Rg1 {[%emt 0:05:05]} Nb4 {[%emt 0:07:18]} 13. Rc1 {[%emt 0:01:04]} c6 {[%emt 0:13:35]} 14. a3 {[%emt 0:01:03]} Na6 {[%emt 0:05:09]} 15. b4 {[%emt 0:05:31]} Bg6 {[%emt 0:05:00]} 16. Ng5 {[%emt 0:02:20]} Nac7 {[%emt 0:05:51]} 17. h4 {[%emt 0:02:05]} Kh8 {[%emt 0:03:48]} 18. h5 {[%emt 0:07:06]} Bf5 {[%emt 0:00:21]} 19. Bd3 {[%emt 0:00:27]} Qd7 {[%emt 0:04:33]} 20. Bxf5 {[%emt 0:07:53]} Qxf5 {[%emt 0:00:30]} 21. Nge4 {[%emt 0:01:04]} cxd5 {[%emt 0:02:06]} 22. cxd5 {[%emt 0:00:49]} h6 {[%emt 0:04:15]} 23. Rg6 {[%emt 0:02:01]} Nb5 {[%emt 0:04:04]} 24. Ng3 {[%emt 0:02:30]} Nxc3 {[%emt 0:01:38]} 25. Rxc3 {[%emt 0:00:03]} Qf7 {[%emt 0:01:27]} 26. Qd2 {[%emt 0:00:53]} Nf6 {[%emt 0:03:11]} 27. Bxh6 {[%emt 0:03:17]} Bxh6 {[%emt 0:00:47]} 28. Rxh6+ {[%emt 0:00:00]} Nh7 {[%emt 0:00:00]} 29. Ne4 {[%emt 0:00:51]} Rg8 {[%emt 0:02:15]} 30. Ng5 {[%emt 0:10:02]} Rxg5 {[%emt 0:00:14]} 31. Qxg5 {[%emt 0:00:02]} Rf8 {[%emt 0:00:32]} 32. Qe3 {[%emt 0:04:16]} Rg8 {[%emt 0:01:39]} 33. Rxd6 {[%emt 0:01:21]} Qxh5 {[%emt 0:00:30]} 34. Kd2 {[%emt 0:00:34]} Qf5 {[%emt 0:02:30]} 35. Rc7 {[%emt 0:01:14]} Qg5 {[%emt 0:02:16]} 36. Qxg5 {[%emt 0:00:33]} Nxg5 {[%emt 0:00:06]} 37. Rh6+ {[%emt 0:00:04]} Nh7 {[%emt 0:00:01]} 38. Rhxh7# {[%emt 0:00:08]} 1-0

[Event "Irish International Open 2019"]
[Site "Dublin"]
[Date "2019.04.19"]
[Round "4.21"]
[White "Sokolinksy, Yaakov"]
[Black "Burns-Mannion, Stephen"]
[Result "1/2-1/2"]
[ECO "C78"]
[WhiteElo "1900"]
[BlackElo "2285"]
[Annotator "NA"]
[PlyCount "143"]
[EventDate "2019.02.28"]
[EventType "swiss"]
[EventCountry "IRL"]
[SourceTitle "playchess.com"]
[Source "ChessBase"]
[SourceQuality "1"]
[TimeControl "5400+30"]

1. e4 {[%emt 1:30:30]} e5 {[%emt 1:30:30]} 2. Nf3 {[%emt 0:00:30]} Nc6 {[%emt 0:00:30]} 3. Bb5 {[%emt 0:00:30]} a6 {[%emt 0:00:30]} 4. Ba4 {[%emt 0:00:30]} Nf6 {[%emt 0:00:30]} 5. d3 {[%emt 0:00:30]} b5 {[%emt 0:00:30]} 6. Bb3 {[%emt 0:00:30]} Bc5 {[%emt 0:00:30]} 7. O-O {[%emt 0:00:30]} d6 {[%emt 0:00:30]} 8. c3 {[%emt 0:00:30]} h6 {[%emt 0:00:30]} 9. Nbd2 {[%emt 0:00:30]} O-O {[%emt 0:00:30]} 10. Re1 {[%emt 0:00:30]} Bb6 {[%emt 0:00:30]} 11. a4 {[%emt 0:00:30]} Rb8 {[%emt 0:00:30]} 12. axb5 {[%emt 0:00:30]} axb5 {[%emt 0:00:30]} 13. Nf1 {[%emt 0:00:30]} Ne7 {[%emt 0:00:30]} 14. d4 {[%emt 0:00:30]} Ng6 {[%emt 0:00:30]} 15. Ng3 {[%emt 0:00:30]} Re8 {[%emt 0:00:30]} 16. h3 {[%emt 0:00:30]} c5 {[%emt 0:00:30]} 17. dxc5 {[%emt 0:00:30]} dxc5 {[%emt 0:00:30]} 18. Qe2 {[%emt 0:00:30]} c4 {[%emt 0:00:30]} 19. Bc2 {[%emt 0:00:30]} Nf4 {[%emt 0:00:30]} 20. Bxf4 {[%emt 0:00:30]} exf4 {[%emt 0:00:30]} 21. Nf1 {[%emt 0:00:30]} Bb7 {[%emt 0:00:30]} 22. e5 {[%emt 0:00:30]} Qc7 {[%emt 0:00:30]} 23. N1d2 {[%emt 0:00:30]} Nd7 {[%emt 0:00:30]} 24. b3 {[%emt 0:00:30]} cxb3 {[%emt 0:00:30]} 25. Bxb3 {[%emt 0:00:30]} Nc5 {[%emt 0:00:30]} 26. Bc2 {[%emt 0:00:30]} Ne6 {[%emt 0:00:30]} 27. Be4 {[%emt 0:00:30]} Bc5 {[%emt 0:00:30]} 28. Reb1 {[%emt 0:00:30]} Bc6 {[%emt 0:00:30]} 29. Ra6 {[%emt 0:00:30]} Bxe4 {[%emt 0:00:30]} 30. Nxe4 {[%emt 0:00:30]} b4 {[%emt 0:00:30]} 31. Rb3 {[%emt 0:00:30]} Red8 {[%emt 0:00:30]} 32. Kh2 {[%emt 0:00:30]} Bf8 {[%emt 0:00:30]} 33. Ra1 {[%emt 0:00:30]} bxc3 {[%emt 0:00:30]} 34. Rxc3 {[%emt 0:00:30]} Qb6 {[%emt 0:00:30]} 35. Rd1 {[%emt 0:00:30]} Rxd1 {[%emt 0:00:30]} 36. Qxd1 {[%emt 0:00:30]} Qb4 {[%emt 0:00:30]} 37. Qc2 {[%emt 0:00:30]} Nd4 {[%emt 0:00:30]} 38. Qd3 {[%emt 0:00:30]} Rd8 {[%emt 0:00:30]} 39. Nd6 {[%emt 0:00:30]} Nxf3+ {[%emt 0:00:30]} 40. Qxf3 {[%emt 0:00:30]} Bxd6 {[%emt 0:00:30]} 41. exd6 {[%emt 0:00:30]} Rxd6 {[%emt 0:00:30]} 42. Rc8+ {[%emt 0:00:30]} Kh7 {[%emt 0:00:30]} 43. Qc3 {[%emt 0:00:30]} Qe4 {[%emt 0:00:30]} 44. Rc4 {[%emt 0:00:30]} Qf5 {[%emt 0:00:30]} 45. Qc2 {[%emt 0:00:30]} Qxc2 {[%emt 0:00:30]} 46. Rxc2 {[%emt 0:00:30]} g5 {[%emt 0:00:30]} 47. g3 {[%emt 0:00:30]} fxg3+ {[%emt 0:00:30]} 48. fxg3 {[%emt 0:00:30]} f5 {[%emt 0:00:30]} 49. Kg2 {[%emt 0:00:30]} Kg6 {[%emt 0:00:30]} 50. Rb2 {[%emt 0:00:30]} Kf6 {[%emt 0:00:30]} 51. Rb5 {[%emt 0:00:30]} Rd2+ {[%emt 0:00:30]} 52. Kg1 {[%emt 0:00:30]} Ke6 {[%emt 0:00:30]} 53. Ra5 {[%emt 0:00:30]} h5 {[%emt 0:00:30]} 54. g4 {[%emt 0:00:30]} hxg4 {[%emt 0:00:30]} 55. hxg4 {[%emt 0:00:30]} fxg4 {[%emt 0:00:30]} 56. Rxg5 {[%emt 0:00:30]} Rd4 {[%emt 0:00:30]} 57. Ra5 {[%emt 0:00:30]} Rd2 {[%emt 0:00:30]} 58. Rg5 {[%emt 0:00:30]} Rd4 {[%emt 0:00:30]} 59. Ra5 {[%emt 0:00:30]} Kf6 {[%emt 0:00:30]} 60. Kg2 {[%emt 0:00:30]} Rd3 {[%emt 0:00:30]} 61. Rb5 {[%emt 0:00:30]} Ra3 {[%emt 0:00:30]} 62. Rc5 {[%emt 0:00:30]} Rf3 {[%emt 0:00:30]} 63. Rb5 {[%emt 0:00:30]} Rf5 {[%emt 0:00:30]} 64. Rxf5+ {[%emt 0:00:30]} Kxf5 {[%emt 0:00:30]} 65. Kg3 {[%emt 0:00:30]} Kg5 {[%emt 0:00:30]} 66. Kg2 {[%emt 0:00:30]} Kf4 {[%emt 0:00:30]} 67. Kf2 {[%emt 0:00:30]} g3+ {[%emt 0:00:30]} 68. Kg2 {[%emt 0:00:30]} Kg4 {[%emt 0:00:30]} 69. Kg1 {[%emt 0:00:30]} Kf3 {[%emt 0:00:30]} 70. Kf1 {[%emt 0:00:30]} Kf4 {[%emt 0:00:30]} 71. Kg2 {[%emt 0:00:30]} Kg4 {[%emt 0:00:30]} 72. Kg1 {[%emt 0:00:30]} 1/2-1/2